[Event "Titled Tuesday Blitz June 6 Late 2023"]
[White "Sarana, Alexey"]
[Black "Kovalev, Vladislav"]
[WhiteFideId "24133795"]
[BlackFideId "13504398"]
[WhiteElo "2714"]
[BlackElo "2555"]
[Result "0-1"]
[Round "8"]
[TimeControl "180+2"]
[Date "2023.06.07"]
[WhiteClock "0:00:05"]
[BlackClock "0:00:07"]
[Board "3"]

1. d4 {[%clk 0:03:00]}  Nf6 {[%clk 0:03:00]} 2. c4 {[%clk 0:03:01]}  e6 {[%clk 0:03:01]} 3. Nc3 {[%clk 0:03:02]}  Bb4 {[%clk 0:03:01]} 4. e3 {[%clk 0:03:02]}  O-O {[%clk 0:03:00]} 5. Bd3 {[%clk 0:03:03]}  d5 {[%clk 0:02:52]} 6. a3 {[%clk 0:03:00]}  Bxc3+ {[%clk 0:02:52]} 7. bxc3 {[%clk 0:03:01]}  dxc4 {[%clk 0:02:52]} 8. Bxc4 {[%clk 0:03:02]}  c5 {[%clk 0:02:53]} 9. Ne2 {[%clk 0:03:03]}  Qc7 {[%clk 0:02:53]} 10. Ba2 {[%clk 0:03:04]}  b6 {[%clk 0:02:51]} 11. O-O {[%clk 0:03:04]}  Ba6 {[%clk 0:02:48]} 12. Re1 {[%clk 0:03:05]}  Nc6 {[%clk 0:02:40]} 13. Ng3 {[%clk 0:03:05]}  Rfd8 {[%clk 0:02:35]} 14. Bb2 {[%clk 0:03:05]}  Rac8 {[%clk 0:02:30]} 15. e4 {[%clk 0:03:04]}  cxd4 {[%clk 0:02:29]} 16. cxd4 {[%clk 0:03:05]}  Qf4 {[%clk 0:02:01]} 17. Rc1 {[%clk 0:02:57]}  Na5 {[%clk 0:01:53]} 18. d5 {[%clk 0:02:34]}  exd5 {[%clk 0:01:42]} 19. Rxc8 {[%clk 0:01:39]}  Rxc8 {[%clk 0:01:39]} 20. exd5 {[%clk 0:01:40]}  Bc4 {[%clk 0:01:28]} 21. d6 {[%clk 0:00:46]}  Bxa2 {[%clk 0:00:40]} 22. Bxf6 {[%clk 0:00:47]}  Qxf6 {[%clk 0:00:32]} 23. d7 {[%clk 0:00:47]}  Rf8 {[%clk 0:00:32]} 24. Re8 {[%clk 0:00:48]}  Nb7 {[%clk 0:00:15]} 25. Nf5 {[%clk 0:00:32]}  g6 {[%clk 0:00:08]} 26. Nh6+ {[%clk 0:00:11]}  Kg7 {[%clk 0:00:09]} 27. Ng4 {[%clk 0:00:12]}  Qb2 {[%clk 0:00:09]} 28. Rxf8 {[%clk 0:00:07]}  Kxf8 {[%clk 0:00:10]} 29. d8=Q+ {[%clk 0:00:08]}  Nxd8 {[%clk 0:00:10]} 30. Qxd8+ {[%clk 0:00:08]}  Kg7 {[%clk 0:00:11]} 31. h3 {[%clk 0:00:09]}  Be6 {[%clk 0:00:11]} 32. Ne3 {[%clk 0:00:09]}  Qa1+ {[%clk 0:00:08]} 33. Kh2 {[%clk 0:00:09]}  Qe5+ {[%clk 0:00:08]} 34. Kg1 {[%clk 0:00:09]}  h5 {[%clk 0:00:09]} 35. Qe7 {[%clk 0:00:09]}  a5 {[%clk 0:00:08]} 36. h4 {[%clk 0:00:07]}  b5 {[%clk 0:00:08]} 37. g3 {[%clk 0:00:05]}  Qc3 {[%clk 0:00:08]} 38. Qd6 {[%clk 0:00:03]}  b4 {[%clk 0:00:07]} 39. axb4 {[%clk 0:00:04]}  axb4 {[%clk 0:00:08]} 40. Nd1 {[%clk 0:00:05]}  Qa1 {[%clk 0:00:06]} 41. Kh2 {[%clk 0:00:03]}  b3 {[%clk 0:00:07]} 42. Qd2 {[%clk 0:00:03]}  Qe5 {[%clk 0:00:07]} 43. Nc3 {[%clk 0:00:02]}  Kh7 {[%clk 0:00:07]} 44. Qb2 {[%clk 0:00:02]}  Qf5 {[%clk 0:00:06]} 45. Kg1 {[%clk 0:00:02]}  Qc2 {[%clk 0:00:06]} 46. Qa1 {[%clk 0:00:02]}  b2 {[%clk 0:00:06]} 47. Qa3 {[%clk 0:00:02]}  b1=Q+ {[%clk 0:00:05]} 48. Nxb1 {[%clk 0:00:03]}  Qxb1+ {[%clk 0:00:06]} 49. Kh2 {[%clk 0:00:04]}  Qe4 {[%clk 0:00:07]} 50. Qc1 {[%clk 0:00:03]}  Bd5 {[%clk 0:00:07]} 51. Qf1 {[%clk 0:00:04]}  Qf3 {[%clk 0:00:07]} 52. Kg1 {[%clk 0:00:05]}  Qh1# {[%clk 0:00:07]} 0-1


[Site "https://www.chess.com"]

[Event "Titled Tuesday Blitz June 6 Late 2023"]
[White "Daggupati, Balaji"]
[Black "Kollars, Dmitrij"]
[WhiteFideId "2090759"]
[BlackFideId "12909572"]
[WhiteElo "2749"]
[BlackElo "2584"]
[Result "0-1"]
[Round "8"]
[TimeControl "180+2"]
[Date "2023.06.07"]
[WhiteClock "0:01:16"]
[BlackClock "0:00:21"]
[Board "7"]

1. e4 {[%clk 0:03:00]}  e5 {[%clk 0:02:58]} 2. Nf3 {[%clk 0:03:01]}  Nc6 {[%clk 0:02:57]} 3. Bb5 {[%clk 0:03:01]}  a6 {[%clk 0:02:57]} 4. Ba4 {[%clk 0:03:02]}  Nf6 {[%clk 0:02:58]} 5. d4 {[%clk 0:03:03]}  exd4 {[%clk 0:02:54]} 6. O-O {[%clk 0:03:03]}  Be7 {[%clk 0:02:50]} 7. Re1 {[%clk 0:03:04]}  b5 {[%clk 0:02:47]} 8. e5 {[%clk 0:03:04]}  Nxe5 {[%clk 0:02:47]} 9. Rxe5 {[%clk 0:03:04]}  bxa4 {[%clk 0:02:46]} 10. Nxd4 {[%clk 0:03:04]}  O-O {[%clk 0:02:33]} 11. Nf5 {[%clk 0:03:04]}  Re8 {[%clk 0:02:25]} 12. Bg5 {[%clk 0:03:04]}  d6 {[%clk 0:02:22]} 13. Nxe7+ {[%clk 0:03:03]}  Rxe7 {[%clk 0:02:17]} 14. Bxf6 {[%clk 0:03:03]}  gxf6 {[%clk 0:02:17]} 15. Ra5 {[%clk 0:03:03]}  Bd7 {[%clk 0:02:09]} 16. Nc3 {[%clk 0:02:58]}  Re5 {[%clk 0:01:57]} 17. Rxe5 {[%clk 0:02:56]}  fxe5 {[%clk 0:01:57]} 18. Nxa4 {[%clk 0:02:56]}  Qg5 {[%clk 0:01:46]} 19. Nc3 {[%clk 0:02:56]}  Rb8 {[%clk 0:01:43]} 20. b3 {[%clk 0:02:53]}  Bc6 {[%clk 0:01:43]} 21. Nd5 {[%clk 0:02:53]}  Rb5 {[%clk 0:01:35]} 22. c4 {[%clk 0:02:52]}  Bxd5 {[%clk 0:01:36]} 23. cxd5 {[%clk 0:02:49]}  Rc5 {[%clk 0:01:26]} 24. g3 {[%clk 0:02:28]}  a5 {[%clk 0:01:25]} 25. Qf3 {[%clk 0:02:23]}  Kg7 {[%clk 0:01:21]} 26. Qd3 {[%clk 0:02:12]}  h5 {[%clk 0:01:16]} 27. h4 {[%clk 0:02:12]}  Qg4 {[%clk 0:01:15]} 28. Kg2 {[%clk 0:02:11]}  Qg6 {[%clk 0:01:07]} 29. Qf3 {[%clk 0:01:52]}  Qg4 {[%clk 0:01:04]} 30. Qd3 {[%clk 0:01:52]}  Qd4 {[%clk 0:00:52]} 31. Qf5 {[%clk 0:01:50]}  Qxd5+ {[%clk 0:00:43]} 32. Kg1 {[%clk 0:01:41]}  e4 {[%clk 0:00:42]} 33. Qf4 {[%clk 0:01:41]}  Qe5 {[%clk 0:00:41]} 34. Qxe5+ {[%clk 0:01:35]}  Rxe5 {[%clk 0:00:42]} 35. Rc1 {[%clk 0:01:35]}  Rc5 {[%clk 0:00:32]} 36. Re1 {[%clk 0:01:27]}  f5 {[%clk 0:00:30]} 37. Rd1 {[%clk 0:01:21]}  d5 {[%clk 0:00:28]} 38. Rd4 {[%clk 0:01:19]}  Kf6 {[%clk 0:00:28]} 39. f4 {[%clk 0:01:16]}  Ke6 {[%clk 0:00:22]} 40. Kf2 {[%clk 0:01:16]}  Rc2+ {[%clk 0:00:21]} 0-1


[Site "https://www.chess.com"]

[Event "Titled Tuesday Blitz June 6 Late 2023"]
[White "Rasulov, Vugar"]
[Black "Martinez Alcantara, Jose Eduardo"]
[WhiteFideId "13402390"]
[BlackFideId "3805662"]
[WhiteElo "2509"]
[BlackElo "2711"]
[Result "1/2-1/2"]
[Round "8"]
[TimeControl "180+2"]
[Date "2023.06.07"]
[WhiteClock "0:00:05"]
[BlackClock "0:00:07"]
[Board "8"]

1. d4 {[%clk 0:03:00]}  Nf6 {[%clk 0:03:00]} 2. c4 {[%clk 0:03:00]}  e6 {[%clk 0:03:01]} 3. Nf3 {[%clk 0:03:00]}  Bb4+ {[%clk 0:03:01]} 4. Nbd2 {[%clk 0:03:00]}  O-O {[%clk 0:03:01]} 5. g3 {[%clk 0:03:00]}  b6 {[%clk 0:03:01]} 6. Bg2 {[%clk 0:03:00]}  Bb7 {[%clk 0:03:02]} 7. O-O {[%clk 0:02:59]}  a5 {[%clk 0:03:02]} 8. Nb1 {[%clk 0:02:54]}  d5 {[%clk 0:03:02]} 9. c5 {[%clk 0:02:51]}  a4 {[%clk 0:02:53]} 10. a3 {[%clk 0:02:51]}  Ba5 {[%clk 0:02:54]} 11. Qxa4 {[%clk 0:02:48]}  c6 {[%clk 0:02:44]} 12. b4 {[%clk 0:02:36]}  b5 {[%clk 0:02:44]} 13. Qc2 {[%clk 0:02:37]}  Bc7 {[%clk 0:02:45]} 14. Bf4 {[%clk 0:02:35]}  Nbd7 {[%clk 0:02:46]} 15. Nbd2 {[%clk 0:02:33]}  Qb8 {[%clk 0:02:46]} 16. Bxc7 {[%clk 0:02:33]}  Qxc7 {[%clk 0:02:47]} 17. Nb3 {[%clk 0:02:32]}  Bc8 {[%clk 0:02:46]} 18. Na5 {[%clk 0:02:30]}  Re8 {[%clk 0:02:43]} 19. a4 {[%clk 0:02:27]}  Ba6 {[%clk 0:02:39]} 20. axb5 {[%clk 0:02:20]}  Bxb5 {[%clk 0:02:40]} 21. Rfe1 {[%clk 0:02:20]}  Ne4 {[%clk 0:02:41]} 22. Nd2 {[%clk 0:02:16]}  f5 {[%clk 0:02:40]} 23. e3 {[%clk 0:02:07]}  Rab8 {[%clk 0:02:40]} 24. Nf3 {[%clk 0:01:55]}  g5 {[%clk 0:02:35]} 25. Nb3 {[%clk 0:01:45]}  g4 {[%clk 0:02:34]} 26. Ne5 {[%clk 0:01:44]}  Nxe5 {[%clk 0:02:33]} 27. dxe5 {[%clk 0:01:45]}  Qxe5 {[%clk 0:02:34]} 28. Nd4 {[%clk 0:01:45]}  Rec8 {[%clk 0:02:17]} 29. Ra7 {[%clk 0:01:42]}  Bc4 {[%clk 0:02:13]} 30. Bxe4 {[%clk 0:01:42]}  Qxe4 {[%clk 0:02:08]} 31. Qxe4 {[%clk 0:01:35]}  dxe4 {[%clk 0:02:09]} 32. Rb1 {[%clk 0:01:28]}  Bd5 {[%clk 0:02:07]} 33. h3 {[%clk 0:01:27]}  gxh3 {[%clk 0:02:03]} 34. Kh2 {[%clk 0:01:27]}  Ra8 {[%clk 0:02:01]} 35. Rxa8 {[%clk 0:01:23]}  Rxa8 {[%clk 0:02:02]} 36. Kxh3 {[%clk 0:01:22]}  Ra2 {[%clk 0:02:00]} 37. Kg2 {[%clk 0:01:18]}  Kf7 {[%clk 0:01:59]} 38. b5 {[%clk 0:01:18]}  cxb5 {[%clk 0:02:00]} 39. Rxb5 {[%clk 0:01:18]}  Ke7 {[%clk 0:01:41]} 40. c6 {[%clk 0:01:16]}  Kd6 {[%clk 0:01:36]} 41. Rb7 {[%clk 0:01:16]}  Ra8 {[%clk 0:01:21]} 42. Rd7+ {[%clk 0:01:15]}  Kc5 {[%clk 0:01:20]} 43. c7 {[%clk 0:01:13]}  Rc8 {[%clk 0:01:19]} 44. Rxh7 {[%clk 0:01:13]}  Kb6 {[%clk 0:01:13]} 45. g4 {[%clk 0:01:13]}  fxg4 {[%clk 0:01:11]} 46. Kg3 {[%clk 0:01:13]}  Rxc7 {[%clk 0:01:10]} 47. Rxc7 {[%clk 0:01:12]}  Kxc7 {[%clk 0:01:11]} 48. Kxg4 {[%clk 0:01:08]}  Kd6 {[%clk 0:01:12]} 49. Kg5 {[%clk 0:01:08]}  Ke5 {[%clk 0:01:02]} 50. Ne2 {[%clk 0:01:06]}  Bc4 {[%clk 0:01:01]} 51. Nf4 {[%clk 0:01:06]}  Bb5 {[%clk 0:00:47]} 52. Ng6+ {[%clk 0:01:05]}  Kd6 {[%clk 0:00:48]} 53. Kf4 {[%clk 0:01:01]}  Bd3 {[%clk 0:00:39]} 54. Ne5 {[%clk 0:01:02]}  Bc2 {[%clk 0:00:39]} 55. Ng4 {[%clk 0:00:59]}  Kd5 {[%clk 0:00:30]} 56. Nf6+ {[%clk 0:00:59]}  Kc4 {[%clk 0:00:31]} 57. Nxe4 {[%clk 0:00:59]}  Kd3 {[%clk 0:00:31]} 58. Ng3 {[%clk 0:00:52]}  Kd2 {[%clk 0:00:31]} 59. e4 {[%clk 0:00:51]}  Ke1 {[%clk 0:00:29]} 60. Ke3 {[%clk 0:00:50]}  Bb1 {[%clk 0:00:25]} 61. f4 {[%clk 0:00:48]}  Ba2 {[%clk 0:00:25]} 62. e5 {[%clk 0:00:47]}  Bc4 {[%clk 0:00:25]} 63. Ne4 {[%clk 0:00:46]}  Ba2 {[%clk 0:00:26]} 64. Kd4 {[%clk 0:00:42]}  Kf1 {[%clk 0:00:21]} 65. Ke3 {[%clk 0:00:26]}  Kg2 {[%clk 0:00:20]} 66. Nd2 {[%clk 0:00:26]}  Bd5 {[%clk 0:00:19]} 67. Ne4 {[%clk 0:00:24]}  Ba2 {[%clk 0:00:18]} 68. Nc3 {[%clk 0:00:24]}  Bb3 {[%clk 0:00:19]} 69. Nb5 {[%clk 0:00:24]}  Ba2 {[%clk 0:00:17]} 70. Nd4 {[%clk 0:00:22]}  Kg3 {[%clk 0:00:13]} 71. Ne2+ {[%clk 0:00:18]}  Kg4 {[%clk 0:00:13]} 72. Nc3 {[%clk 0:00:18]}  Bb3 {[%clk 0:00:13]} 73. Nb5 {[%clk 0:00:17]}  Ba2 {[%clk 0:00:13]} 74. Nd6 {[%clk 0:00:15]}  Bb3 {[%clk 0:00:13]} 75. Ne8 {[%clk 0:00:15]}  Ba2 {[%clk 0:00:13]} 76. Nf6+ {[%clk 0:00:15]}  Kg3 {[%clk 0:00:14]} 77. Ne4+ {[%clk 0:00:14]}  Kg4 {[%clk 0:00:13]} 78. Nf6+ {[%clk 0:00:10]}  Kg3 {[%clk 0:00:13]} 79. Nd7 {[%clk 0:00:07]}  Kg4 {[%clk 0:00:14]} 80. Nf8 {[%clk 0:00:07]}  Kg3 {[%clk 0:00:12]} 81. Ng6 {[%clk 0:00:06]}  Kg4 {[%clk 0:00:12]} 82. Ne7 {[%clk 0:00:06]}  Kg3 {[%clk 0:00:12]} 83. Nc6 {[%clk 0:00:06]}  Kg4 {[%clk 0:00:12]} 84. Nb4 {[%clk 0:00:06]}  Bb3 {[%clk 0:00:13]} 85. Nd3 {[%clk 0:00:06]}  Ba2 {[%clk 0:00:13]} 86. Kd4 {[%clk 0:00:06]}  Bb1 {[%clk 0:00:11]} 87. Nc5 {[%clk 0:00:06]}  Ba2 {[%clk 0:00:09]} 88. Ke4 {[%clk 0:00:06]}  Bb1+ {[%clk 0:00:09]} 89. Ke3 {[%clk 0:00:06]}  Ba2 {[%clk 0:00:09]} 90. Nd3 {[%clk 0:00:04]}  Kg3 {[%clk 0:00:09]} 91. Nf2 {[%clk 0:00:04]}  Bd5 {[%clk 0:00:07]} 92. Ne4+ {[%clk 0:00:05]}  Kh3 {[%clk 0:00:04]} 93. Kf3 {[%clk 0:00:04]}  Bc6 {[%clk 0:00:03]} 94. Ke3 {[%clk 0:00:04]}  Bd5 {[%clk 0:00:03]} 95. Nf6 {[%clk 0:00:03]}  Ba2 {[%clk 0:00:03]} 96. Kd4 {[%clk 0:00:02]}  Kg3 {[%clk 0:00:04]} 97. Kc5 {[%clk 0:00:03]}  Kxf4 {[%clk 0:00:04]} 98. Kd6 {[%clk 0:00:04]}  Kf5 {[%clk 0:00:05]} 99. Nd7 {[%clk 0:00:04]}  Kg6 {[%clk 0:00:04]} 100. Nc5 {[%clk 0:00:05]}  Kf7 {[%clk 0:00:05]} 101. Ne4 {[%clk 0:00:05]}  Ke8 {[%clk 0:00:05]} 102. Ng5 {[%clk 0:00:06]}  Kf8 {[%clk 0:00:05]} 103. Kd7 {[%clk 0:00:05]}  Bb3 {[%clk 0:00:04]} 104. Kd6 {[%clk 0:00:05]}  Ba2 {[%clk 0:00:04]} 105. Nh3 {[%clk 0:00:05]}  Kf7 {[%clk 0:00:04]} 106. Nf4 {[%clk 0:00:06]}  Bc4 {[%clk 0:00:04]} 107. Nh3 {[%clk 0:00:05]}  Kg6 {[%clk 0:00:04]} 108. Nf2 {[%clk 0:00:04]}  Kf7 {[%clk 0:00:04]} 109. Nd1 {[%clk 0:00:05]}  Ba2 {[%clk 0:00:04]} 110. Ne3 {[%clk 0:00:05]}  Kg6 {[%clk 0:00:04]} 111. Nc2 {[%clk 0:00:05]}  Kf7 {[%clk 0:00:04]} 112. Nd4 {[%clk 0:00:05]}  Bc4 {[%clk 0:00:04]} 113. Nf3 {[%clk 0:00:05]}  Kg6 {[%clk 0:00:04]} 114. Nd4 {[%clk 0:00:05]}  Kf7 {[%clk 0:00:04]} 115. Nc6 {[%clk 0:00:05]}  Ke8 {[%clk 0:00:04]} 116. Nb4 {[%clk 0:00:05]}  Kf7 {[%clk 0:00:04]} 117. Nc2 {[%clk 0:00:06]}  Bb3 {[%clk 0:00:05]} 118. Ne3 {[%clk 0:00:06]}  Kg6 {[%clk 0:00:05]} 119. Nf1 {[%clk 0:00:06]}  Kf7 {[%clk 0:00:05]} 120. Ng3 {[%clk 0:00:07]}  Ba2 {[%clk 0:00:06]} 121. Ne2 {[%clk 0:00:07]}  Bb3 {[%clk 0:00:05]} 122. Nf4 {[%clk 0:00:07]}  Ba2 {[%clk 0:00:05]} 123. Kd7 {[%clk 0:00:07]}  Bc4 {[%clk 0:00:05]} 124. Kd8 {[%clk 0:00:07]}  Ba2 {[%clk 0:00:06]} 125. Ne2 {[%clk 0:00:07]}  Kg6 {[%clk 0:00:06]} 126. Ke7 {[%clk 0:00:08]}  Kf5 {[%clk 0:00:06]} 127. Kd6 {[%clk 0:00:08]}  Kg6 {[%clk 0:00:06]} 128. Nc3 {[%clk 0:00:07]}  Bb3 {[%clk 0:00:06]} 129. Nb5 {[%clk 0:00:07]}  Kf7 {[%clk 0:00:06]} 130. Kc7 {[%clk 0:00:07]}  Ke7 {[%clk 0:00:05]} 131. Nd6 {[%clk 0:00:07]}  Bd5 {[%clk 0:00:05]} 132. Nc8+ {[%clk 0:00:07]}  Kf7 {[%clk 0:00:05]} 133. Kd7 {[%clk 0:00:07]}  Ba2 {[%clk 0:00:05]} 134. Nd6+ {[%clk 0:00:07]}  Kg6 {[%clk 0:00:06]} 135. Ke7 {[%clk 0:00:07]}  Bb3 {[%clk 0:00:05]} 136. Nb5 {[%clk 0:00:05]}  Ba2 {[%clk 0:00:04]} 137. Nd4 {[%clk 0:00:05]}  Kg5 {[%clk 0:00:04]} 138. Kd6 {[%clk 0:00:04]}  Kg6 {[%clk 0:00:05]} 139. Nxe6 {[%clk 0:00:05]}  Kf7 {[%clk 0:00:05]} 140. Nd4 {[%clk 0:00:05]}  Ke8 {[%clk 0:00:05]} 141. Nf5 {[%clk 0:00:05]}  Kf7 {[%clk 0:00:05]} 142. Ne3 {[%clk 0:00:05]}  Ke8 {[%clk 0:00:06]} 143. Nc2 {[%clk 0:00:05]}  Kf7 {[%clk 0:00:06]} 144. Nb4 {[%clk 0:00:05]}  Bb3 {[%clk 0:00:06]} 145. Nc6 {[%clk 0:00:06]}  Ke8 {[%clk 0:00:06]} 146. Nd4 {[%clk 0:00:06]}  Ba2 {[%clk 0:00:07]} 147. Nf5 {[%clk 0:00:06]}  Kf7 {[%clk 0:00:07]} 148. Nd4 {[%clk 0:00:05]}  Ke8 {[%clk 0:00:07]} 1/2-1/2


[Site "https://www.chess.com"]

[Event "Titled Tuesday Blitz June 6 Late 2023"]
[White "Keymer, Vincent"]
[Black "Kamsky, Gata"]
[WhiteFideId "12940690"]
[BlackFideId "2000024"]
[WhiteElo "2669"]
[BlackElo "2660"]
[Result "1-0"]
[Round "8"]
[TimeControl "180+2"]
[Date "2023.06.07"]
[WhiteClock "0:00:06"]
[BlackClock "0:00:01"]
[Board "11"]

1. Nf3 {[%clk 0:03:00]}  Nf6 {[%clk 0:02:58]} 2. c4 {[%clk 0:03:01]}  c6 {[%clk 0:02:57]} 3. Nc3 {[%clk 0:03:00]}  d5 {[%clk 0:02:58]} 4. e3 {[%clk 0:03:01]}  g6 {[%clk 0:02:55]} 5. d4 {[%clk 0:03:01]}  Bg7 {[%clk 0:02:54]} 6. Be2 {[%clk 0:03:02]}  O-O {[%clk 0:02:54]} 7. O-O {[%clk 0:03:03]}  Qb6 {[%clk 0:02:52]} 8. h3 {[%clk 0:02:59]}  Be6 {[%clk 0:02:48]} 9. b3 {[%clk 0:02:53]}  Bf5 {[%clk 0:02:47]} 10. a4 {[%clk 0:02:51]}  a5 {[%clk 0:02:46]} 11. Ba3 {[%clk 0:02:50]}  Re8 {[%clk 0:02:46]} 12. Rc1 {[%clk 0:02:48]}  Na6 {[%clk 0:02:43]} 13. cxd5 {[%clk 0:02:47]}  cxd5 {[%clk 0:02:30]} 14. Bb5 {[%clk 0:02:46]}  Rec8 {[%clk 0:02:29]} 15. Bxe7 {[%clk 0:02:45]}  Nb4 {[%clk 0:02:28]} 16. Ne5 {[%clk 0:02:34]}  Rc7 {[%clk 0:02:06]} 17. Bc5 {[%clk 0:02:21]}  Qe6 {[%clk 0:02:06]} 18. Ne2 {[%clk 0:02:13]}  Ne4 {[%clk 0:01:53]} 19. Nf4 {[%clk 0:02:07]}  Qc8 {[%clk 0:01:47]} 20. Bxb4 {[%clk 0:02:04]}  axb4 {[%clk 0:01:44]} 21. Nxd5 {[%clk 0:02:03]}  Rxc1 {[%clk 0:01:42]} 22. Qxc1 {[%clk 0:02:04]}  Qd8 {[%clk 0:01:25]} 23. Nxb4 {[%clk 0:01:56]}  Bxe5 {[%clk 0:01:24]} 24. dxe5 {[%clk 0:01:56]}  Qg5 {[%clk 0:01:21]} 25. f4 {[%clk 0:01:49]}  Qh4 {[%clk 0:01:16]} 26. Qe1 {[%clk 0:01:47]}  Qd8 {[%clk 0:01:13]} 27. Bd3 {[%clk 0:01:32]}  Rc8 {[%clk 0:01:10]} 28. g4 {[%clk 0:01:28]}  Nc5 {[%clk 0:01:08]} 29. Bxf5 {[%clk 0:01:16]}  gxf5 {[%clk 0:01:07]} 30. gxf5 {[%clk 0:01:17]}  Ne4 {[%clk 0:01:05]} 31. f6 {[%clk 0:00:58]}  Kh8 {[%clk 0:01:00]} 32. Kh2 {[%clk 0:00:55]}  Qd7 {[%clk 0:00:52]} 33. Rg1 {[%clk 0:00:43]}  Rd8 {[%clk 0:00:47]} 34. Rg2 {[%clk 0:00:37]}  Qf5 {[%clk 0:00:42]} 35. Qe2 {[%clk 0:00:25]}  h5 {[%clk 0:00:40]} 36. Nd3 {[%clk 0:00:18]}  h4 {[%clk 0:00:34]} 37. Nf2 {[%clk 0:00:17]}  Ng3 {[%clk 0:00:27]} 38. Rxg3 {[%clk 0:00:12]}  hxg3+ {[%clk 0:00:27]} 39. Kxg3 {[%clk 0:00:12]}  Rg8+ {[%clk 0:00:24]} 40. Ng4 {[%clk 0:00:13]}  Rd8 {[%clk 0:00:22]} 41. e4 {[%clk 0:00:12]}  Qh5 {[%clk 0:00:21]} 42. Qf3 {[%clk 0:00:08]}  Kh7 {[%clk 0:00:17]} 43. a5 {[%clk 0:00:07]}  Rc8 {[%clk 0:00:13]} 44. Ne3 {[%clk 0:00:02]}  Rg8+ {[%clk 0:00:12]} 45. Ng4 {[%clk 0:00:02]}  Rc8 {[%clk 0:00:12]} 46. b4 {[%clk 0:00:02]}  Rc1 {[%clk 0:00:11]} 47. Ne3 {[%clk 0:00:02]}  Qg6+ {[%clk 0:00:10]} 48. Ng4 {[%clk 0:00:01]}  Qh5 {[%clk 0:00:09]} 49. Kg2 {[%clk 0:00:02]}  Qh4 {[%clk 0:00:09]} 50. Qg3 {[%clk 0:00:02]}  Rc2+ {[%clk 0:00:09]} 51. Nf2 {[%clk 0:00:02]}  Qh6 {[%clk 0:00:09]} 52. Qg4 {[%clk 0:00:03]}  Rc4 {[%clk 0:00:07]} 53. Qg5 {[%clk 0:00:03]}  Qxg5+ {[%clk 0:00:06]} 54. fxg5 {[%clk 0:00:04]}  Rxb4 {[%clk 0:00:06]} 55. Kf3 {[%clk 0:00:04]}  Rb5 {[%clk 0:00:05]} 56. Kf4 {[%clk 0:00:05]}  Rxa5 {[%clk 0:00:06]} 57. Ng4 {[%clk 0:00:05]}  Kg6 {[%clk 0:00:04]} 58. h4 {[%clk 0:00:06]}  Ra1 {[%clk 0:00:03]} 59. e6 {[%clk 0:00:06]}  Rf1+ {[%clk 0:00:03]} 60. Ke5 {[%clk 0:00:07]}  fxe6 {[%clk 0:00:03]} 61. Kxe6 {[%clk 0:00:07]}  b5 {[%clk 0:00:03]} 62. Ne5+ {[%clk 0:00:08]}  Kh5 {[%clk 0:00:03]} 63. g6 {[%clk 0:00:08]}  Kh6 {[%clk 0:00:03]} 64. g7 {[%clk 0:00:06]}  Kh7 {[%clk 0:00:03]} 65. h5 {[%clk 0:00:05]}  b4 {[%clk 0:00:03]} 66. h6 {[%clk 0:00:06]}  b3 {[%clk 0:00:02]} 67. f7 {[%clk 0:00:06]}  Rg1 {[%clk 0:00:01]} 68. f8=Q {[%clk 0:00:06]} 1-0


[Site "https://www.chess.com"]

[Event "Titled Tuesday Blitz June 6 Late 2023"]
[White "Bortnyk, Mykola"]
[Black "Indjic, Aleksandar"]
[WhiteFideId "14120836"]
[BlackFideId "911925"]
[WhiteElo "2592"]
[BlackElo "2614"]
[Result "1-0"]
[Round "8"]
[TimeControl "180+2"]
[Date "2023.06.07"]
[WhiteClock "0:00:08"]
[BlackClock "0:00:04"]
[Board "13"]

1. e4 {[%clk 0:03:00]}  e5 {[%clk 0:02:59]} 2. f4 {[%clk 0:03:00]}  exf4 {[%clk 0:02:54]} 3. Nc3 {[%clk 0:03:00]}  Nc6 {[%clk 0:02:49]} 4. Nf3 {[%clk 0:02:55]}  g5 {[%clk 0:02:44]} 5. Bc4 {[%clk 0:02:54]}  g4 {[%clk 0:02:40]} 6. d4 {[%clk 0:02:52]}  Bh6 {[%clk 0:02:33]} 7. Ne5 {[%clk 0:02:18]}  Nxe5 {[%clk 0:02:29]} 8. dxe5 {[%clk 0:02:19]}  Qh4+ {[%clk 0:02:28]} 9. Kf1 {[%clk 0:02:18]}  Ne7 {[%clk 0:02:17]} 10. Nb5 {[%clk 0:02:18]}  O-O {[%clk 0:02:11]} 11. Nxc7 {[%clk 0:02:16]}  Rb8 {[%clk 0:02:04]} 12. Qd6 {[%clk 0:02:08]}  b5 {[%clk 0:02:03]} 13. Be2 {[%clk 0:01:36]}  Rb6 {[%clk 0:01:59]} 14. Qd4 {[%clk 0:01:30]}  Re6 {[%clk 0:01:46]} 15. Nxe6 {[%clk 0:01:25]}  fxe6 {[%clk 0:01:47]} 16. Bxb5 {[%clk 0:01:22]}  Ng6 {[%clk 0:00:44]} 17. Bd2 {[%clk 0:00:37]}  f3 {[%clk 0:00:43]} 18. g3 {[%clk 0:00:18]}  Qh3+ {[%clk 0:00:43]} 19. Ke1 {[%clk 0:00:19]}  Qg2 {[%clk 0:00:40]} 20. Rf1 {[%clk 0:00:18]}  Qxh2 {[%clk 0:00:08]} 21. Bxh6 {[%clk 0:00:15]}  Qxh6 {[%clk 0:00:09]} 22. Rd1 {[%clk 0:00:10]}  Qg5 {[%clk 0:00:08]} 23. Kf2 {[%clk 0:00:07]}  Nxe5 {[%clk 0:00:07]} 24. Rh1 {[%clk 0:00:07]}  h5 {[%clk 0:00:07]} 25. a4 {[%clk 0:00:05]}  a6 {[%clk 0:00:07]} 26. Bd3 {[%clk 0:00:05]}  Bb7 {[%clk 0:00:07]} 27. Qe3 {[%clk 0:00:06]}  Qg6 {[%clk 0:00:08]} 28. b3 {[%clk 0:00:05]}  Bc6 {[%clk 0:00:08]} 29. Rh4 {[%clk 0:00:06]}  Rf7 {[%clk 0:00:07]} 30. Rdh1 {[%clk 0:00:06]}  Rh7 {[%clk 0:00:07]} 31. Qd4 {[%clk 0:00:06]}  Qf6 {[%clk 0:00:08]} 32. Rxh5 {[%clk 0:00:06]}  Rxh5 {[%clk 0:00:07]} 33. Rxh5 {[%clk 0:00:07]}  Nxd3+ {[%clk 0:00:06]} 34. Qxd3 {[%clk 0:00:07]}  Qg6 {[%clk 0:00:06]} 35. Rh4 {[%clk 0:00:07]}  e5 {[%clk 0:00:07]} 36. Qxa6 {[%clk 0:00:05]}  Qxe4 {[%clk 0:00:06]} 37. Qc4+ {[%clk 0:00:06]}  Qxc4 {[%clk 0:00:05]} 38. bxc4 {[%clk 0:00:07]}  Bxa4 {[%clk 0:00:04]} 39. Rxg4+ {[%clk 0:00:07]}  Kf7 {[%clk 0:00:04]} 40. Kxf3 {[%clk 0:00:07]}  Bxc2 {[%clk 0:00:05]} 41. Ke3 {[%clk 0:00:07]}  Ke6 {[%clk 0:00:05]} 42. Rh4 {[%clk 0:00:07]}  Bf5 {[%clk 0:00:05]} 43. g4 {[%clk 0:00:08]}  Bc2 {[%clk 0:00:04]} 44. Rh6+ {[%clk 0:00:08]}  Ke7 {[%clk 0:00:04]} 45. c5 {[%clk 0:00:07]}  Kf7 {[%clk 0:00:05]} 46. Rd6 {[%clk 0:00:07]}  Ke7 {[%clk 0:00:05]} 47. g5 {[%clk 0:00:07]}  Bf5 {[%clk 0:00:05]} 48. Kf3 {[%clk 0:00:08]}  Bc2 {[%clk 0:00:05]} 49. Kg4 {[%clk 0:00:08]}  Bb3 {[%clk 0:00:04]} 50. Kf5 {[%clk 0:00:08]}  e4 {[%clk 0:00:04]} 51. Kxe4 {[%clk 0:00:08]}  Be6 {[%clk 0:00:04]} 52. Ke5 {[%clk 0:00:08]} 1-0


[Site "https://www.chess.com"]